Cogmind - Beta 15 @@@ ROGUE MODE // 2025.05.11 @ 10:42:25 Player: star Result: Destroyed by X-57 Shotgunner with Shotgun Performance ------------- Evolutions (2) 1000 Regions Visited (5) 1000 Robots Destroyed (39) 195 Value Destroyed (1088) 1088 Prototype IDs (4) 80 Alien Tech Used (0) 0 Bonus (81) 81 TOTAL SCORE: 3444 Bonus ------- Follower Combat Kills 81 Cogmind --------- Core Integrity 0/550 Matter 225/300 Energy 45/160 System Corruption 6% Temperature Cool (0) Movement Core (250) Ox4 Location -8/Materials Parts ------- > --- POWER (1) -------- Light Nuclear Core > --- PROPULSION (3) --- (None) > --- UTILITY (5) ------ Medium Storage Unit Improved Signal Interpreter Improved Targeting Computer > --- WEAPON (2) ------- (None) > --- INVENTORY (10) --- High-capacity Matter Pod (200) Hacking Suite Authchip [Armor] Beam Rifle Proton Missile Launcher Scythe Peak State ------------ > --- POWER ------------ Improved Ion Engine > --- PROPULSION ------- Carbon-fiber Leg Carbon-fiber Leg Carbon-fiber Leg > --- UTILITY ---------- Improved Heat Sink Medium Storage Unit Improved Signal Interpreter Improved Targeting Computer Hardened Light Armor Plating > --- WEAPON ----------- Beam Rifle Proton Missile Launcher > --- INVENTORY -------- Ion Engine High-capacity Matter Pod Transmission Jammer Hacking Suite Authchip [Armor] Beam Rifle Improved Medium Laser Heavy Assault Rifle Proton Missile Launcher Scythe [Rating: 30] Favorites ----------- Power Light Nuclear Core Engine Improved Ion Engine Power Core Light Nuclear Core Propulsion Aluminum Leg Leg Aluminum Leg Wheel Wheel Utility Medium Storage Unit Device Improved Heat Sink Storage Medium Storage Unit Processor Signal Interpreter Protection Hardened Light Armor Plating Weapon Beam Rifle Energy Gun Beam Rifle Ballistic Gun Assault Rifle Ballistic Cannon Light Cannon Launcher Proton Missile Launcher Impact Weapon Heavy Mace Build | -11 -10 -10 -10 -9 -8 ------- Run | Yrd Mat Min Exi Min Mat Slots Evolved 4 | . . . . . 4 Power . | . . . . . . Propulsion 1 | . . . . . 1 Utility 3 | . . . . . 3 Weapon . | . . . . . . Parts Attached 42 | 6 10 2 . . 24 Power 7 | 1 1 1 . . 4 Engine 3 | 1 . . . . 2 Core 4 | . 1 1 . . 2 Reactor . | . . . . . . Propulsion 9 | 2 2 . . . 5 Treads . | . . . . . . Leg 7 | . 2 . . . 5 Wheel 2 | 2 . . . . . Hover . | . . . . . . Flight . | . . . . . . Utility 11 | 1 3 . . . 7 Device 3 | . . . . . 3 Storage 2 | 1 1 . . . . Processor 5 | . 2 . . . 3 Hackware . | . . . . . . Protection 1 | . . . . . 1 Artifact . | . . . . . . Weapon 15 | 2 4 1 . . 8 Energy Gun 8 | 2 2 1 . . 3 Energy Cannon . | . . . . . . Ballistic Gun 2 | . 1 . . . 1 Ballistic Cannon 1 | . 1 . . . . Launcher 3 | . . . . . 3 Special Weapon . | . . . . . . Impact Weapon 1 | . . . . . 1 Slashing Weapon . | . . . . . . Piercing Weapon . | . . . . . . Special Melee Weapon . | . . . . . . Unidentified Prototypes 2 | . . . . . 2 Corrupted Parts 1 | . . . . . 1 System Corruption 6 | . . . . . 6 Parts Lost 16 | . 4 . . . 12 Power 4 | . 1 . . . 3 Propulsion 5 | . 2 . . . 3 Utility 3 | . . . . . 3 Weapon 4 | . 1 . . . 3 Highest Loss Streak 8 | . 3 . . . 8 To Critical Strikes 1 | . 1 . . . . Average Backups 8 | . 7 9 9 9 9 Power . | . 1 1 1 1 . Propulsion . | . . . . . . Utility 3 | . 2 5 5 5 3 Weapon 3 | . 4 3 3 3 4 Tool/Special . | . . . . . . Unused Backups 11 | . 3 2 . . 6 Power . | . . . . . . Propulsion . | . . . . . . Utility 5 | . 1 1 . . 3 Weapon 6 | . 2 1 . . 3 Tool/Special . | . . . . . . Average Slot Usage (%) 95 | . 90 100 100 100 94 Engine 1 | . 1 . . . 2 Core 10 | . 10 14 14 14 5 Leg 25 | . 22 28 28 28 24 Wheel 1 | . 3 . . . . Device 2 | . . . . . 9 Storage 13 | . 15 14 14 14 9 Processor 12 | . 6 14 14 14 17 Protection 2 | . . . . . 7 Energy Gun 16 | . 22 14 14 14 13 Ballistic Cannon 7 | . 3 14 14 14 2 Peak Build Rating 30 | 6 11 11 11 11 30 Average Rating 13 | 4 8 10 11 11 23 On Entrance 8 | . 6 10 11 11 11 Naked Turns . | . . . . . . Heaviest Build 29 | 13 24 21 21 21 29 Greatest Support 45 | 20 20 20 20 20 45 Greatest Overweight (x) 5 | 3 2 1 1 1 5 Average Overweight (x) . | . . . 1 1 . Largest Inventory Capacity 10 | 8 10 10 10 10 10 Average Capacity 9 | 7 9 10 10 10 10 Most Carried 10 | 2 10 10 10 10 10 Average Carried 9 | . 7 9 10 10 9 Final Capacity 10 | 8 10 10 10 10 10 Final Carried 10 | 2 10 10 10 10 6 Class Distribution -------------------- 82% | Scavenger-Mutant 17% | Mutant Dominant Class ---------------- Scavenger-Mutant | -10/Materials Scavenger-Mutant | -10/Mines Scavenger-Mutant | -10/Exiles Scavenger-Mutant | -9/Mines Scavenger-Mutant | -8/Materials Resources | -11 -10 -10 -10 -9 -8 ----------- Run | Yrd Mat Min Exi Min Mat Matter Collected 1068 | 176 384 171 . 20 317 Remotely . | . . . . . . Salvage Created 1465 | . 478 157 . . 830 Parts 79 | . 39 6 . . 34 Haulers Intercepted 2 | . 1 . . . 1 Recyclers Shooed 1 | . . 1 . . . Parts Field Recycled . | . . . . . . Retrieved Matter . | . . . . . . Parts Self-Destructed . | . . . . . . Prevented . | . . . . . . Kills | -11 -10 -10 -10 -9 -8 ------- Run | Yrd Mat Min Exi Min Mat Combat Hostiles Destroyed 30 | . 15 2 . . 13 Guns 19 | . 15 . . . 4 Cannons 3 | . . 2 . . 1 AOE 6 | . . . . . 6 Classes Destroyed 10 | . 5 1 . . 4 Worker 2 | . 1 . . . 1 Builder 1 | . 1 . . . . Tunneler 1 | . . . . . 1 Hauler 2 | . 1 . . . 1 Recycler 2 | . . 1 . . 1 Mechanic 1 | . . . . . 1 Swarmer 9 | . 9 . . . . Grunt 16 | . 6 2 . . 8 Sentry 4 | . . . . . 4 Hunter 1 | . . . . . 1 Best Kill Streak 4 | . 4 3 . . 4 Combat Bots Only 4 | . 4 2 . . 3 Max Kills in Single Turn 2 | . 1 1 . . 2 Gunslinging . | . . . . . . Exploded 2 | . . . . . 2 Melee . | . . . . . . Uniques/NPCs Destroyed . | . . . . . . Combat | -11 -10 -10 -10 -9 -8 -------- Run | Yrd Mat Min Exi Min Mat Hostile Shots Fired 222 | . 66 2 . 2 152 Missed 72 | . 16 . . . 56 Hits 150 | . 50 2 . 2 96 Projectile 150 | . 50 2 . 2 96 Critical Strikes 6 | . 2 . . . 4 Damage Taken 2476 | . 572 39 . 20 1845 Core 700 | . 133 . . 10 557 Absorbed by Shields . | . . . . . . Regen/Repaired (Parts) 62 | . . . . . 62 Core Remaining (%) 71 | 100 . . . 42 . Volleys Fired 125 | . 65 7 . 2 51 Largest 2 | . 2 2 . 2 2 Hottest 112 | . 105 70 . 86 112 Shots Fired 210 | . 114 15 . 4 77 Gun 163 | . 98 7 . 2 56 Cannon 40 | . 16 8 . 2 14 Launcher 7 | . . . . . 7 Special . | . . . . . . Kinetic 65 | . 35 8 . 2 20 Thermal 123 | . 64 7 . 2 50 Explosive 2 | . . . . . 2 Electromagnetic 20 | . 15 . . . 5 Robot Hit Streak 14 | . 9 14 . 8 10 Robot Miss Streak 5 | . 5 1 . 2 2 Penetration Max . | . . . . . . Secondary Targets 1 | . 1 . . . . Max Gunslinging Chain 1 | . 1 . . . . Shots Hit Robots 115 | . 49 12 . 2 52 Core Hits 62 | . 24 8 . 1 29 Critical Kills . | . . . . . . Critical Parts Destroyed 1 | . . . . . 1 Critical Strikes 7 | . 1 1 . . 5 Burn 4 | . . . . . 4 Blast 1 | . . 1 . . . Corrupt 1 | . 1 . . . . Smash 1 | . . . . . 1 Melee Attacks 1 | . . . . . 1 Impact 1 | . . . . . 1 Slashing . | . . . . . . Piercing . | . . . . . . Sneak Attacks 1 | . . . . . 1 Combat Hostiles . | . . . . . . Follow-up Attacks . | . . . . . . Damage Inflicted 2366 | . 642 169 . 35 1520 Guns 1392 | . 642 78 . 15 657 Cannons 144 | . . 91 . 20 33 Explosions 714 | . . . . . 714 Melee 116 | . . . . . 116 Ramming . | . . . . . . Kinetic 381 | . 152 91 . 20 118 Thermal 1220 | . 381 78 . 15 746 Explosive 178 | . . . . . 178 Electromagnetic 471 | . 109 . . . 362 Impact 116 | . . . . . 116 Slashing . | . . . . . . Piercing . | . . . . . . Highest Corruption 6 | . 1 1 1 1 6 Average Corruption 1 | . 1 1 1 1 6 Corruption Purged . | . . . . . . Corruption Blocked . | . . . . . . Effects 15 | . 1 8 1 5 . Message Errors 3 | . . 2 . 1 . Matter Fused 4 | . 1 1 . 2 . Heat Flow Errors 1 | . . . . 1 . Energy Discharges 5 | . . 4 . 1 . Data Loss (minor) 1 | . . . 1 . . Misfires 1 | . . 1 . . . Overload Shots . | . . . . . . Overflow Damage 116 | . . . . . 116 Projectiles . | . . . . . . Explosions . | . . . . . . Melee 116 | . . . . . 116 Knockbacks 2 | . . . . 1 1 Impact 1 | . . . . . 1 Kinetic 1 | . . . . 1 . Secondary . | . . . . . . Self-Inflicted Damage 51 | . . . . . 51 Shots 2 | . . . . . 2 Rammed . | . . . . . . Targets Rammed . | . . . . . . Kicked . | . . . . . . Crushed . | . . . . . . Highest Temperature 306 | . 306 81 . 179 117 Average Temperature 61 | . 79 36 . 59 37 Received Heat Transfer 465 | . 114 15 . 12 324 Effects 1 | . 1 . . . . Energy Bleed 1 | . 1 . . . . Siege Activations . | . . . . . . Martial Activations . | . . . . . . Shielding Activations . | . . . . . . Robots Disrupted . | . . . . . . Combat Hostiles . | . . . . . . Robots Corrupted 2 | . . . . . 2 Combat Hostiles 1 | . . . . . 1 Parts Fried 1 | . . . . . 1 Impact Corruptions 4 | . . . . . 4 Robots Melted 1 | . . . . . 1 Combat Hostiles 1 | . . . . . 1 Parts Melted 8 | . 3 . . . 5 Heat Transferred 3037 | . 873 175 . 37 1952 Parts Sabotaged . | . . . . . . Parts Stolen . | . . . . . . Parts Stripped . | . . . . . . Power Chain Reactions 4 | . . . . . 4 Alert | -11 -10 -10 -10 -9 -8 ------- Run | Yrd Mat Min Exi Min Mat Maximum Alert Level . | . . . . . . Low Security (%) 100 | 100 100 100 . 100 100 Level 1 . | . . . . . . Level 2 . | . . . . . . Level 3 . | . . . . . . Level 4 . | . . . . . . Level 5 . | . . . . . . High Security . | . . . . . . Max Security . | . . . . . . Peak Influence 165 | . 165 80 . 36 146 Initial 4 | . . 4 . . . Average 43 | . 74 15 . 2 51 Influence Increases 1237 | . 473 143 . 56 565 Destroy 0b10 Robot/C 700 | . 300 100 . 40 260 Destroy 0b10 Robot/NC 45 | . 15 5 . . 25 Destroy Leader 164 | . 52 20 . 10 82 Allied During Kill 24 | . . 18 . 6 . Trap Triggered on 0b10 10 | . . . . . 10 Successful Hack 9 | . . . . . 9 Disable Machine 60 | . 15 . . . 45 Destroy Structure 30 | . 1 . . . 29 Lose Combat Pursuer 195 | . 90 . . . 105 Influence Decreases 1101 | . 461 155 . 56 429 Entered New Map 8 | . . 8 . . . Time Decay 913 | . 421 147 . 36 309 Lost Part 160 | . 40 . . . 120 Lost Ally 20 | . . . . 20 . Squads Dispatched 4 | . 1 . . . 3 Investigation 1 | . 1 . . . . Extermination . | . . . . . . Reinforcement 3 | . . . . . 3 Assault . | . . . . . . Garrison . | . . . . . . Intercept . | . . . . . . Searches Triggered . | . . . . . . Construction Impeded . | . . . . . . Haulers Reinforced . | . . . . . . Active Scanning Responses . | . . . . . . Cargo Convoy Interrupts . | . . . . . . Stealth | -11 -10 -10 -10 -9 -8 --------- Run | Yrd Mat Min Exi Min Mat Distress Signals 4 | . 1 . . . 3 Communications Jammed . | . . . . . . Distress Signals . | . . . . . . Times Spotted 66 | . 29 4 . 2 31 Peak Tracking Total 5 | . 5 2 . 2 5 Tactical Retreats 8 | . 5 . . . 3 Traps | -11 -10 -10 -10 -9 -8 ------- Run | Yrd Mat Min Exi Min Mat Traps Triggered 3 | . 3 . . . . Indirectly . | . . . . . . Trap Hack Attempts . | . . . . . . Triggered . | . . . . . . Disarmed . | . . . . . . Reprogrammed . | . . . . . . Reused 1 | . . . . . 1 Traps Extracted . | . . . . . . Installed 1 | . . . . . 1 Triggered 1 | . . . . . 1 Most Traps Carried 1 | . . 1 1 1 1 Machines | -11 -10 -10 -10 -9 -8 ---------- Run | Yrd Mat Min Exi Min Mat Machines Disabled 4 | . 1 . . . 3 Max in Single Turn 1 | . 1 . . . 1 Machines Repaired . | . . . . . . Machines Dismantled . | . . . . . . Machines Sabotaged . | . . . . . . Overloaded Fab Kills . | . . . . . . Hacking | -11 -10 -10 -10 -9 -8 --------- Run | Yrd Mat Min Exi Min Mat Machines Accessed 4 | . 1 . 1 . 2 Terminals 2 | . 1 . . . 1 Fabricators . | . . . . . . Repair Stations 1 | . . . . . 1 Recycling Units . | . . . . . . Scanalyzers . | . . . . . . Garrison Access . | . . . . . . Total Hacks 10 | . 3 . 3 . 4 Successful 6 | . . . 3 . 3 Failed 4 | . 3 . . . 1 Catastrophic 2 | . 2 . . . . Database Lockouts . | . . . . . . Manual 2 | . 2 . . . . Terminals 5 | . 3 . . . 2 Fabricators . | . . . . . . Repair Stations 2 | . . . . . 2 Recycling Units . | . . . . . . Scanalyzers . | . . . . . . Garrison Access . | . . . . . . Terminal Hacks 4 | . . . 3 . 1 Record 3 | . . . 3 . . Prototype ID Bank 1 | . . . . . 1 Fabricator Hacks . | . . . . . . Repair Station Hacks 2 | . . . . . 2 Scan Component 1 | . . . . . 1 Repair 1 | . . . . . 1 Recycling Unit Hacks . | . . . . . . Scanalyzer . | . . . . . . Garrison Access Hacks . | . . . . . . Unauthorized Hacks . | . . . . . . Terminals . | . . . . . . Fabricators . | . . . . . . Repair Stations . | . . . . . . Recycling Units . | . . . . . . Scanalyzers . | . . . . . . Garrison Access . | . . . . . . Data Cores Recovered . | . . . . . . Used . | . . . . . . Hacking Detections 2 | . 1 . . . 1 Full Trace Events 1 | . 1 . . . . Feedback Events . | . . . . . . Feedback Blocked . | . . . . . . Robot Schematics Acquired . | . . . . . . Robots Built . | . . . . . . Authchips . | . . . . . . Time . | . . . . . . Total Robot Build Rating . | . . . . . . Part Schematics Acquired . | . . . . . . Parts Built . | . . . . . . Authchips . | . . . . . . Time . | . . . . . . Total Part Build Rating . | . . . . . . Parts Repaired 1 | . . . . . 1 Time 51 | . . . . . 51 Parts Recycled . | . . . . . . Recycled Matter . | . . . . . . Retrieved Matter . | . . . . . . Retrieved Components . | . . . . . . Parts Scanalyzed . | . . . . . . Part Schematics Acquired . | . . . . . . Parts Damaged . | . . . . . . Bothacking | -11 -10 -10 -10 -9 -8 ------------ Run | Yrd Mat Min Exi Min Mat Used RIF Installer . | . . . . . . Robots Hacked . | . . . . . . Non-combat . | . . . . . . Combat . | . . . . . . Robot Hacks Applied . | . . . . . . Relay Couplers Released . | . . . . . . Fabnet Peak Effective % . | . . . . . . Robots Rewired . | . . . . . . Allies Hacked . | . . . . . . Hacks Repelled . | . . . . . . Allies | -11 -10 -10 -10 -9 -8 -------- Run | Yrd Mat Min Exi Min Mat Total Allies 4 | . . 4 . . . Largest Group 4 | . . 4 3 3 2 Highest-Rated Group 71 | . . 71 40 40 24 Highest-Rated Ally 31 | . . 31 16 16 16 Total Orders . | . . . . . . Ally Attacks 22 | . . 11 . 6 5 Total Damage 221 | . . 145 . 41 35 Kills 5 | . . 3 . 2 . Allies Corrupted . | . . . . . . Allies Melted . | . . . . . . Intel | -11 -10 -10 -10 -9 -8 ------- Run | Yrd Mat Min Exi Min Mat Active Infowar (turns) 52 | . . . . . 52 Sensors 2 | . . . . . 2 Jamming 50 | . . . . . 50 Robot Analysis Total . | . . . . . . Derelict Logs Recovered 3 | . . 1 . 2 . Drone Launches . | . . . . . . Drone Recoveries . | . . . . . . Exploration | -11 -10 -10 -10 -9 -8 ------------- Run | Yrd Mat Min Exi Min Mat Turns Passed 3653 | 42 1130 803 244 463 971 Spaces Moved 2175 | 35 722 541 129 233 515 Core 11 | 4 2 . . . 5 Treads . | . . . . . . Legs 2041 | . 628 541 129 233 510 Wheels 123 | 31 92 . . . . Hover . | . . . . . . Flight . | . . . . . . Fastest Speed 50 | 50 80 120 190 190 120 Average Speed 140 | 86 120 137 190 190 139 Slowest Speed 300 | 200 190 190 190 190 300 Overloaded Moves . | . . . . . . Propulsion Burnouts . | . . . . . . Robots Hopped . | . . . . . . Potential Cave-ins . | . . . . . . Cave-ins Triggered . | . . . . . . Exploration Rate (%) 55 | 3 87 91 48 55 46 Regions Visited 5 Branch Regions 3 Pre-discovered Areas 4 | . . 1 1 2 . Known Exits Taken 4 | . 1 1 1 1 . Unknown Exits Taken 1 | 1 . . . . . Scrap Searched 2 | . . 1 . 1 . Spaces Dug . | . . . . . . Terrain Destroyed 28 | . . . . . 28 Melee . | . . . . . . Projectile . | . . . . . . AOE 28 | . . . . . 28 Terrain Rammed . | . . . . . . Walls Destroyed . | . . . . . . Machines Disabled . | . . . . . . Actions | -11 -10 -10 -10 -9 -8 --------- Run | Yrd Mat Min Exi Min Mat Total 2562 | 43 866 591 128 250 684 Wait 158 | . 50 30 . 16 62 Move 2170 | 34 721 540 128 232 515 Hop . | . . . . . . Pick Up 32 | 3 14 5 . . 10 Fast Attach 14 | 5 4 . . . 5 Attach 8 | 1 1 . . . 6 Detach . | . . . . . . Swap 27 | . 5 2 . . 20 Drop 26 | . 6 7 . . 13 Fire 125 | . 65 7 . 2 51 Melee 1 | . . . . . 1 Ram . | . . . . . . Kick . | . . . . . . Crush . | . . . . . . Escape Stasis . | . . . . . . Rewire . | . . . . . . Trap 1 | . . . . . 1 Miscellaneous . | . . . . . . Route ------- -11/Scrapyard -10/Materials (discovered 4 exits: *Mat x2 / *Min x2) -10/Mines (discovered 2 exits: *Mat / *Exi) -10/Exiles -9/Mines -8/Materials (discovered 2 exits: *Fac x2) History --------- Turn | Location | Event 14 | -11/Scrapyard | Discovered new exit (range 15) 43 | -11/Scrapyard | Entered Materials 202 | -10/Materials | Lost 3 parts (1p1n1w) 343 | -10/Materials | Discovered new exit (range 11) 449 | -10/Materials | Discovered new exit (range 15) 584 | -10/Materials | Build established: Scavenger-Mutant 653 | -10/Materials | Discovered new exit (range 16) 769 | -10/Materials | Core integrity fell below 50% 1028 | -10/Materials | Discovered new exit (range 11) 1112 | -10/Materials | Identified exit to Mines 1173 | -10/Materials | Entered Mines 1314 | -10/Mines | Found a hidden stash of uninstalled traps 1485 | -10/Mines | Discovered new exit (range 12) 1502 | -10/Mines | Received a Mining Laser from a helpful Derelict 1524 | -10/Mines | Identified exit to Materials 1641 | -10/Mines | Assisted by bots powering up and referring to "LRC-V3" 1697 | -10/Mines | Joined a pair of Derelicts in attacking an 0b10 outpost 1960 | -10/Mines | Deemed a non-threat by the Exiles lab entrance 1961 | -10/Mines | Discovered new exit (range 5) 1967 | -10/Mines | Identified exit to Exiles 1976 | -10/Mines | Entered Exiles 1976 | -10/Exiles | Accompanied by 3 allies 2022 | -10/Exiles | Met 8R-AWN 2056 | -10/Exiles | Met EX-HEX 2128 | -10/Exiles | Met EX-DEC 2138 | -10/Exiles | Learned location of Zion (-6) 2197 | -10/Exiles | Discovered new exit (range 11) 2212 | -10/Exiles | Identified exit to Mines 2220 | -10/Exiles | Entered Mines 2220 | -9/Mines | Accompanied by 3 allies 2420 | -9/Mines | Learned location of Storage (-9) 2678 | -9/Mines | Discovered new exit (range 3) 2681 | -9/Mines | Identified exit to Materials 2683 | -9/Mines | Entered Materials 2683 | -8/Materials | Accompanied by 2 allies 2683 | -8/Materials | Evolved 4 slots: Propulsion x1, Utility x3 3125 | -8/Materials | Discovered new exit (range 16) 3144 | -8/Materials | Identified exit to Factory 3267 | -8/Materials | Repaired Imp. Medium Laser 3410 | -8/Materials | Discovered exit to Factory (range 16) 3605 | -8/Materials | Lost 3 parts (1n1u1w) 3634 | -8/Materials | Core integrity fell below 50% 3637 | -8/Materials | Build established: Mutant 3646 | -8/Materials | Core integrity fell below 20% 3654 | -8/Materials | Destroyed by X-57 Shotgunner with Shotgun Last Messages --------------- 03618_ Carbon-fiber Leg destroyed. 03618_ Imp. Ion Engine destroyed. 03618_ Critical hit (Blast). 03618_ U-05 Engineer lays Concrete. 03618_ Critical hit (Burn: +37). 03620_ U-05 Engineer lays Concrete. 03623_ Electrolysis Chamber disabled. 03632_ Carbon-fiber Leg destroyed. 03634_ Imp. Heat Sink destroyed. 03636_ Transmission Jammer destroyed. 03639_ G-47 Trooper suffers critical hit (Destroy). 03640_ G-47 Trooper destroyed. 03643_ Hvy. Assault Rifle destroyed. 03645_ G-47 Trooper destroyed. 03645_ Chain reaction triggered in Ion Engine. 03645_ Atomic Centrifuge disabled. 03645_ G-47 Trooper destroyed. 03648_ Proton Missile Launcher destroyed. 03652_ Acquired Corrupted Lgt. Nuclear Core. 03652_ Integrated Corrupted Lgt. Nuclear Core (+6). Map ----- +----------------------------------------------------+ | | | | | | | | | | | | | | | | | | | | | ?????????????????????????????????????????? | | ?????????????????????????????????????????? | | ?????????????????????????????????????????? | | ?????????????????????????????????????????? | | ?????????????????????????????????????????? | | ?????????????????????????????????????????? | | ?????????????????######??????????????????? | | ?????????????????# #??????????????????? | | ?????????????????# #??????????????????? | | ???????#????"????# #??????????????????? | | ???????# ???""???# #??????????????????? | | ?### ??# ??? ?# ########???#####???? | | ?# ##+######*#[ = x #####! !#???? | | ?# [ [+= %%!= # !!#???? | | %H=[ % %%![ [% " # < !!#???? | | ?# |=% !! + ! #==@ " # ]!!#???? | | ?# ######+#######;x # ] #???? | | ?????????????# !### # ]]#???? | | ?????????????# """ #?# + #####???? | | ?????????????# "R *#?# " # ######### | | ?????????????# """ #?# # # # | | ?????????????# !#?# """ # # # | | ?????????????# #?# """ # # // # | | ?????????????####+###?# """ # # / * # | | ????????????????#!#???# # # /* # | | ????????????????#!#???######## + # | | ????????????????#[#??????????# # # | | ????????????????# #??????????# # """ # | | ????????????????#[#??????##### # """ ! # | | ????????????????#[#??????# # """ # | | ????????????????#=#??????# # # | | ????????????????#=#??????# ######### | | ????????????????#%#??????# "T" #???????? | | ????????????????# #??????# """ #???????? | | ????????????????# ######## #???????? | | ????????????????# #???????? | | ????????????????# ######## #???????? | | ????????????????# #??????# #???????? | | ????????????????# #??????# #???????? | | ????????????????# ##### #??????# #???????? | +----------------------------------------------------+ Best States ------------- Heat Dissipation 45 Energy Generation 14 Energy Capacity 265 Matter Stores 300 Matter Capacity 300 Sight Range 16 Terrain Scan Density 10 Jamming Range 12 Armor Coverage 150 Evasion (%) 55 Targeting Accuracy 6 Authchip Count 2 Item Schematics ----------------- None Robot Schematics ------------------ None Fabricated ------------ Nothing Repaired ---------- Imp. Medium Laser | 31% | -8/Materials Alien Tech Used ----------------- None Achievements -------------- None Challenges ------------ None Game ------ Seed ImpulseScrapTerrabomb Manual? 0 Play Time 00:24:37 Cumulative 144.1 hours Start 2025.05.11 @ 10:18:42 End 2025.05.11 @ 10:42:25 Sessions 1 Manual Loads 0 Difficulty Rogue Special Mode None Game No. 249 Rogue 249 Adventurer 0 Explorer 0 Win Type - Total 1 Types 1/0/0/0/0/0/0/0/0/0 Lore% 51 Gallery% 57 Achievement% 48 Wizard Run 0 Options --------- Layout 0 ASCII 0 Keyboard 0 Movement Numpad Keybinds 0 Fullscreen 2 Font 18/SmallcapsGlow Map View 76x50 Zoom Use 0% Tactical HUD 1 Map Filters NONE Filters NONE Steam 1 RUN: de3c01c8-cd49-44a4-8b85-a811e46c6148